[Event "Silves Open 2025"]
[Site "Fissul"]
[Date "2025.03.03"]
[Round "1.30"]
[White "Finkler, Kai Andreas"]
[Black "Ribeiro, Margarida"]
[Result "1-0"]
[Annotator "TA"]
[ECO "C44"]
[WhiteElo "1990"]
[BlackElo "1519"]
[PlyCount "57"]
[EventDate "2025.03.03"]
[EventType "swiss"]
[EventCountry "POR"]
[SourceTitle "playchess.com"]
[Source "ChessBase"]
[SourceQuality "1"]
[TimeControl "5400+30"]

{[%evp 10,57,-35,-24,76,85,72,75,105,106,113,75,71,66,82,67,87,54,72,52,85,78,81,35,34,21,50,63,62,31,31,13,132,115,245,253,235,213,264,198,506,511,517,438,421,368,549,581,1024,1026]} 1. e4 {[%emt 1:31:00]} e5 {[%emt 1:31:00]} 2. Nf3 {[%emt 0:00:30]} Nc6 {[%emt 0:00:30]} 3. d4 {[%emt 0:00:30]} exd4 {[%emt 0:00:30]} 4. c3 {[%emt 0:00:30]} dxc3 {[%emt 0:00:30]} 5. Nxc3 {[%emt 0:00:30]} Bc5 {[%emt 0:00:30]} 6. Bc4 {[%emt 0:00:30]} h6 {[%emt 0:00:30] [#] C44: Ponziani Opening and Scotch Gambit.} (6... d6 $11) 7. Bxf7+ $1 $16 {[%emt 0:00:30]} Kxf7 {[%emt 0:00:30]} 8. Qd5+ {[%emt 0:00:30]} Ke8 {[%emt 0:00:30] Strongly threatening ...d6. White is better.} 9. Qxc5 {[%emt 0:00:30] White has more active pieces.} d6 {[%emt 0:00:30]} 10. Qh5+ {[%emt 0:00:30]} Kf8 {[%emt 0:00:30]} 11. O-O {[%emt 0:00:30]} Nf6 {[%emt 0:00:30]} 12. Qb5 {[%emt 0:00:30]} a6 {[%emt 0:00:30]} 13. Qe2 $146 {[%emt 0:00:30]} (13. Qb3 Qe7 14. Nd5 Nxd5 15. exd5 Na5 16. Qc3 b6 17. Be3 Bg4 18. Bd4 Bxf3 19. Qxf3+ {1-0 Goredema,D (1620)-Paupamah,P (1215) RSA-chT U20 Cape Town 2016 (3.5)}) 13... Bg4 {[%emt 0:00:30][%cal Bc8g4,Bg4e6,Be6c4][%mdl 32]} 14. Qe3 {[%emt 0:00:30]} Nb4 {[%emt 0:00:30]} 15. Ne1 {[%emt 0:00:30] Prevents Nc2} Kf7 {[%emt 0:00:30]} 16. a3 {[%emt 0:00:30]} (16. f3 $16 Be6 17. Rf2) 16... Nc6 $14 {[%emt 0:00:30]} 17. f4 {[%emt 0:00:30][%cal Bf2f4,Bf4f5][%mdl 32]} Be6 {[%emt 0:00:30]} 18. e5 $36 {[%emt 0:00:30][%cal Be4e5,Be5e6][%mdl 2080] White has some pressure.} Nd5 {[%emt 0:00:30]} 19. Qe4 {[%emt 0:00:30]} Nxc3 {[%emt 0:00:30]} 20. bxc3 {[%emt 0:00:30] [#]} d5 {[%emt 0:00:30]} (20... dxe5 $11 {keeps the balance.} 21. f5 (21. fxe5+ Kg8 $17) 21... Bd5) 21. Qc2 $16 {[%emt 0:00:30] f5 would now be deadly.} d4 {[%emt 0:00:30] A mistake that costs the game.} (21... g6 $16) 22. f5 $18 {[%emt 0:00:30]} Bc4 {[%emt 0:00:30]} 23. e6+ {[%emt 0:00:30]} Ke7 {[%emt 0:00:30]} 24. Rf4 {[%emt 0:00:30]} d3 {[%emt 0:00:30]} (24... Qd5 {is more resistant.} 25. Nf3 d3) 25. Qf2 {[%emt 0:00:30]} Qd5 {[%emt 0:00:30]} 26. Nf3 {[%emt 0:00:30]} Rhf8 {[%emt 0:00:30]} 27. Nd2 {[%emt 0:00:30]} b5 {[%emt 0:00:30]} (27... g5 $142) 28. a4 {[%emt 0:00:30]} Na5 {[%emt 0:00:30]} 29. Ba3+ {[%emt 0:00:30] Weighted Error Value: White=0.22 (precise) /Black=0.87  Mistake:       	White=1     	Black=4      Inaccurate:     	White=3     	Black=4      OK:         	White=7     	Black=11     Best:        	White=2     	Black=2      Brilliant:      	White=1     	---} 1-0

[Event "Silves Open 2025"]
[Site "Fissul"]
[Date "2025.03.03"]
[Round "1.31"]
[White "Opatskyy, Danylo"]
[Black "Goncalves, Diogo Figueiredo"]
[Result "0-1"]
[Annotator "TA"]
[ECO "B50"]
[WhiteElo "1490"]
[BlackElo "1985"]
[PlyCount "66"]
[EventDate "2025.03.03"]
[EventType "swiss"]
[EventCountry "POR"]
[SourceTitle "playchess.com"]
[Source "ChessBase"]
[SourceQuality "1"]
[TimeControl "5400+30"]

{[%evp 15,66,-19,-14,-25,-13,-18,-16,-31,36,0,0,-12,32,-81,-88,-89,-80,-94,0,-22,-17,-17,-15,-13,-16,-14,-19,-92,-42,-41,-39,-96,-99,-92,-86,-198,-188,-208,-192,-278,-255,-295,-293,-235,-141,-126,-131,-220,-209,-29970,-29967,-6829,-6016]} 1. e4 {[%emt 0:00:09]} c5 {[%emt 0:00:07]} 2. Nf3 {[%emt 0:00:13]} d6 {[%emt 0:00:07]} 3. Bc4 {[%emt 0:01:30]} Nf6 {[%emt 0:00:40]} 4. Nc3 {[%emt 0:00:22]} Nc6 {[%emt 0:00:30]} 5. d3 {[%emt 0:01:02]} e6 {[%emt 0:00:27]} 6. Bg5 {[%emt 0:02:23]} Be7 {[%emt 0:00:21]} 7. O-O {[%emt 0:03:29]} a6 {[%emt 0:01:27]} 8. a4 {[%emt 0:01:39]} O-O {[%emt 0:00:18]} 9. Re1 {[%emt 0:00:38] B50: Sicilian: 2...d6, Miscellaneous.} h6 {[%emt 0:07:52]} 10. Bh4 {[%emt 0:02:20]} g5 $146 {[%emt 0:14:48]} (10... Nb4 11. h3 d5 12. exd5 exd5 13. Bb3 Be6 14. a5 Rc8 15. Ne2 Qc7 16. Bg3 Bd6 {0-1 Schutte,W (1572)-Smietanska,W (1937) Titled Tuesday intern op 27th Feb Early blitz 2024 (9)}) 11. Bg3 {[%emt 0:07:42] The position is equal.} d5 {[%emt 0:00:46]} ({Black should play} 11... Nh5 $15) 12. exd5 {[%emt 0:01:35]} exd5 {[%emt 0:00:02]} 13. Ba2 {[%emt 0:00:47]} Bg4 {[%emt 0:08:52]} 14. Be5 {[%emt 0:12:24]} (14. h4 $14 {keeps the upper hand.}) 14... Nxe5 $17 {[%emt 0:06:47]} 15. Rxe5 {[%emt 0:00:40][%cal Oh2h3]} Bd6 {[%emt 0:00:14]} 16. Re1 {[%emt 0:00:07]} Qd7 {[%emt 0:15:51]} (16... Bf4 $17 17. h3 Bh5) 17. Nxd5 {[%emt 0:06:42]} Nxd5 {[%emt 0:00:41]} 18. Bxd5 {[%emt 0:01:46] [#]} Bxh2+ {[%emt 0:00:14]} 19. Kxh2 {[%emt 0:00:06]} Qxd5 {[%emt 0:00:05]} 20. Re3 {[%emt 0:06:07]} Rfe8 {[%emt 0:01:54]} 21. Rb1 {[%emt 0:06:16]} (21. Qe2 $11 {keeps the balance.} Qd6+ 22. Kg1 Rxe3 23. Qxe3) 21... b5 {[%emt 0:10:48]} (21... Rxe3 $17 22. fxe3 c4) 22. axb5 {[%emt 0:04:00]} axb5 {[%emt 0:00:04]} 23. b3 {[%emt 0:00:20]} (23. Qe2 $15 Rxe3 24. Qxe3) 23... Rxe3 {[%emt 0:03:06]} 24. fxe3 {[%emt 0:01:02]} Ra2 {[%emt 0:01:36]} 25. Kg1 {[%emt 0:03:04]} (25. Rc1 $17) 25... Bxf3 $19 {[%emt 0:02:07]} 26. gxf3 {[%emt 0:00:07][%mdl 4096] Endgame KQR-KQR} Qe5 {[%emt 0:00:16]} 27. e4 {[%emt 0:02:38]} (27. Qe2 {was necessary.}) 27... Qg3+ {[%emt 0:00:25]} 28. Kf1 {[%emt 0:00:06]} Qh2 {[%emt 0:01:09]} 29. Rc1 {[%emt 0:00:16]} h5 $40 {[%emt 0:02:21][%cal Og5g4][%mdl 128] White must now prevent ...g4!. Black has strong attack.} 30. Ke1 {[%emt 0:00:18]} h4 {[%emt 0:00:56] Black is much more active.} 31. Qe2 {[%emt 0:00:06] [#] Against h3} (31. Qd2 $17 Qg1+ 32. Ke2 Qh2+ 33. Ke1) 31... Qg1+ $1 {[%emt 0:02:23]} 32. Qf1 $2 {[%emt 0:00:49]} (32. Kd2 $19 Qg3 33. e5) 32... Qe3+ {[%emt 0:00:14]} 33. Kd1 {[%emt 0:00:08] [#]} Qxc1+ $3 {[%emt 0:01:09][%mdl 512] Weighted Error Value: White=0.53/Black=0.19 (very precise)   Mistake:       	White=7     	Black=3      Inaccurate:     	White=1     	Black=2      OK:         	White=5     	Black=8      Best:        	White=1     	Black=4      Brilliant:      	---       	Black=1} 0-1

[Event "Silves Open 2025"]
[Site "Fissul"]
[Date "2025.03.03"]
[Round "1.32"]
[White "Esteves, Goncalo Maria Franco"]
[Black "Goncalves, Beatriz M A C Nunes"]
[Result "1-0"]
[Annotator "TA"]
[ECO "A05"]
[WhiteElo "1962"]
[BlackElo "1458"]
[PlyCount "133"]
[EventDate "2025.03.03"]
[EventType "swiss"]
[EventCountry "POR"]
[SourceTitle "playchess.com"]
[Source "ChessBase"]
[SourceQuality "1"]
[TimeControl "5400+30"]

{[%evp 14,132,-7,-17,25,-2,36,33,43,59,56,32,54,48,105,76,75,42,43,31,41,37,43,36,39,0,16,17,60,45,70,38,49,53,52,37,115,83,83,84,133,137,122,118,128,132,143,129,124,129,171,112,311,304,300,295,349,354,357,352,562,321,299,290,386,383,421,329,385,388,384,387,376,365,358,349,381,371,539,485,459,432,435,536,516,453,507,359,516,497,647,647,906,861,29981,29981,29983,29984,29986,29984,29984,29985,29986,29987,29987,29988,29990,29991,29991,29991,29992,29990,29995,29994,29997,29997,29997,29998,29998,29999,29999]} 1. Nf3 {[%emt 0:00:02]} d5 {[%emt 0:00:39]} 2. g3 {[%emt 0:00:21]} c5 {[%emt 0:00:20]} 3. Bg2 {[%emt 0:00:17]} g6 {[%emt 0:01:18]} 4. O-O {[%emt 0:00:39]} Bg7 {[%emt 0:00:16]} 5. d3 {[%emt 0:00:37]} Nf6 {[%emt 0:00:49]} 6. a3 {[%emt 0:01:46][%cal Ba2a3,Ba3b4,Bb4b5][%mdl 32]} O-O {[%emt 0:02:36]} 7. Nc3 {[%emt 0:01:20]} Nc6 {[%emt 0:02:31]} 8. Rb1 {[%emt 0:00:39]} Be6 $146 {[%emt 0:05:38] A05: Réti Opening: 1 Nf3 Nf6.} (8... b6 9. b4 cxb4 10. axb4 Bb7 11. b5 Nb8 12. Na2 Nfd7 13. Bb2 Bxb2 14. Rxb2 a5 15. bxa6 Nxa6 16. d4 {½-½ Zhao,J (2578)-Swiercz,D (2616) Qatar Masters op 2014 (7)}) 9. Bd2 {[%emt 0:01:51]} h6 {[%emt 0:05:49]} 10. b4 {[%emt 0:01:35]} cxb4 {[%emt 0:01:34] White is slightly better.} 11. axb4 {[%emt 0:00:07]} Qc8 {[%emt 0:09:43]} 12. b5 {[%emt 0:02:12]} Nd8 {[%emt 0:02:03]} 13. Qc1 {[%emt 0:10:44][%cal Ob1b4]} Kh7 {[%emt 0:01:11]} (13... Bh3 $14) 14. Qa3 {[%emt 0:01:17] White plays on the queen side and is better} Re8 {[%emt 0:01:08]} 15. Rfe1 {[%emt 0:07:27][%cal Bf1e1,Be1e4,Be4c4][%mdl 32]} Bh3 {[%emt 0:01:44]} 16. Qb3 {[%emt 0:04:43]} Bxg2 {[%emt 0:06:11]} 17. Kxg2 {[%emt 0:02:32]} e6 {[%emt 0:02:26]} 18. e4 {[%emt 0:02:59]} dxe4 {[%emt 0:02:33]} 19. Nxe4 {[%emt 0:00:17]} Nxe4 {[%emt 0:00:25]} 20. Rxe4 {[%emt 0:00:19]} a6 {[%emt 0:03:33]} 21. Rc4 {[%emt 0:05:02]} Qd7 {[%emt 0:00:37]} 22. Bc3 {[%emt 0:02:19]} Qxb5 {[%emt 0:03:01]} 23. Qxb5 {[%emt 0:11:54]} axb5 {[%emt 0:00:36]} 24. Rxb5 {[%emt 0:00:01]} Rb8 {[%emt 0:00:31]} (24... Bxc3 $14 25. Rxc3 Re7) 25. Be5 {[%emt 0:01:29]} Bxe5 {[%emt 0:00:15]} 26. Nxe5 {[%emt 0:00:02]} Kg7 {[%emt 0:00:44]} (26... Re7 $142) 27. Rc7 $16 {[%emt 0:02:37]} Ra8 {[%emt 0:45:49] Inhibits Ra5.} 28. Nc4 {[%emt 0:01:14] White has more active pieces.} Kf8 {[%emt 0:00:00]} 29. Nb6 $36 {[%emt 0:03:40][%mdl 2048] White is on the roll.} Ra7 {[%emt 0:00:00]} 30. Nd7+ {[%emt 0:01:48]} Kg7 {[%emt 0:00:00]} 31. Rc8 {[%emt 0:01:22]} f6 {[%emt 0:00:00]} 32. Nb6 {[%emt 0:04:27]} (32. Nc5 $18 {[%cal Oc8d8] and Rxd8! should not be overlooked} Kf7 33. c3) 32... Kf7 $2 {[%emt 0:00:00] Black cannot hold the game after this.} (32... g5 $16 33. Rc7+ Kg6) 33. Rc7+ $18 {[%emt 0:00:43]} Kg8 {[%emt 0:00:00]} 34. Nd7 {[%emt 0:02:15] Against Rf8} Kf7 {[%emt 0:00:00]} 35. Ne5+ {[%emt 0:01:14]} Kg8 {[%emt 0:00:00]} 36. Nxg6 {[%emt 0:00:27]} Nc6 {[%emt 0:00:00]} (36... e5 $142 37. Ne7+ Kh8) 37. Rbxb7 {[%emt 0:01:03]} Rxb7 {[%emt 0:00:00]} 38. Rxb7 {[%emt 0:00:07][%mdl 4096] Endgame KRN-KRN. White is two pawns up.} Nd4 {[%emt 0:00:00]} 39. c4 {[%emt 0:03:02]} Rd8 {[%emt 0:00:00]} 40. Rc7 {[%emt 0:01:21]} Nf5 {[%emt 0:00:00]} 41. g4 {[%emt 0:01:05]} Ng7 {[%emt 0:00:00] [#]} 42. Rc8 $1 {[%emt 0:00:15][%mdl 512]} Rxc8 {[%emt 0:00:00]} 43. Ne7+ {[%emt 0:00:09]} Kf7 {[%emt 0:00:00]} 44. Nxc8 {[%emt 0:00:09] KN-KN. White is two pawns up.} h5 {[%emt 0:00:00]} 45. h3 {[%emt 0:00:28]} e5 {[%emt 0:00:00]} (45... hxg4 $142 46. hxg4 f5) 46. Nd6+ {[%emt 0:00:24]} Ke6 {[%emt 0:00:00]} 47. Nb5 {[%emt 0:04:13]} hxg4 {[%emt 0:00:00]} 48. hxg4 {[%emt 0:00:09]} Kd7 {[%emt 0:00:00]} 49. Nc3 {[%emt 0:00:42]} Ne6 {[%emt 0:00:00]} 50. Ne2 {[%emt 0:02:06]} ({Weaker is} 50. Nd5 Nc5 51. Nxf6+ Ke6 $18) 50... Kc6 {[%emt 0:00:00]} (50... Nc5 $142 51. Nc1 Ke6) 51. Kf3 {[%emt 0:00:19]} Ng5+ {[%emt 0:00:00]} 52. Ke3 {[%emt 0:00:21]} Kc5 {[%emt 0:00:00]} 53. Ng3 {[%emt 0:00:36]} Kd6 {[%emt 0:00:00]} 54. Ne4+ {[%emt 0:00:11] White mates.} Nxe4 {[%emt 0:00:00]} 55. Kxe4 {[%emt 0:00:08] KP-KP. White is two pawns up.} Kc5 {[%emt 0:00:00] [#]} 56. g5 $1 {[%emt 0:00:12]} fxg5 {[%emt 0:00:00][%cal Bf6g5,Bg5g4][%mdl 32]} 57. Kxe5 {[%emt 0:00:09]} g4 {[%emt 0:00:00]} 58. d4+ {[%emt 0:00:51]} Kxc4 {[%emt 0:00:00] KPP-KP. White is a pawn up.} 59. d5 {[%emt 0:00:08]} Kd3 {[%emt 0:00:00]} 60. d6 {[%emt 0:00:17]} Ke2 {[%emt 0:00:00]} 61. Kf4 {[%emt 0:00:20]} Kxf2 {[%emt 0:00:00]} 62. Kxg4 {[%emt 0:01:00] KP-K. White is a pawn up.} Kg1 {[%emt 0:00:00]} 63. d7 {[%emt 0:00:06]} Kh1 {[%emt 0:00:00]} 64. d8=Q {[%emt 0:00:36]} Kh2 {[%emt 0:00:00]} 65. Qd2+ {[%emt 0:00:47]} Kh1 {[%emt 0:00:00]} 66. Kf3 {[%emt 0:00:27][%csl Gf3][%cal Rd2g2]} Kg1 {[%emt 0:00:00]} 67. Qg2# {[%emt 0:00:08] Weighted Error Value: White=0.25 (precise) /Black=0.43  Loses game:     	---       	Black=1      Mistake:       	White=1     	Black=6      Inaccurate:     	White=4     	Black=6      OK:         	White=15    	Black=13     Best:        	White=4     	Black=3} 1-0

[Event "Silves Open 2025"]
[Site "Fissul"]
[Date "2025.03.03"]
[Round "1.35"]
[White "De Oliveira, Victor Gabriel C."]
[Black "Avelino, Camila Biscaya"]
[Result "0-1"]
[Annotator "TA"]
[ECO "B56"]
[WhiteElo "2176"]
[BlackElo "1906"]
[PlyCount "42"]
[EventDate "2025.03.03"]
[EventType "swiss"]
[EventCountry "POR"]
[SourceTitle "playchess.com"]
[Source "ChessBase"]
[SourceQuality "1"]
[TimeControl "5400+30"]

{[%evp 12,41,-2,0,0,-6,0,-3,5,-18,-36,-37,-42,-41,-29,-38,-10,-16,-9,-47,0,-38,-34,-71,-35,-35,-32,-545,-546,-550,-550,-29999]} 1. e4 {[%emt 1:31:00]} c5 {[%emt 1:31:00]} 2. Nf3 {[%emt 0:00:30]} d6 {[%emt 0:00:30]} 3. d4 {[%emt 0:00:30]} cxd4 {[%emt 0:00:30]} 4. Nxd4 {[%emt 0:00:30]} Nf6 {[%emt 0:00:30]} 5. Nc3 {[%emt 0:00:30]} Nc6 {[%emt 0:00:30]} 6. Nxc6 {[%emt 0:00:30]} bxc6 {[%emt 0:00:30]} 7. Be2 {[%emt 0:00:30]} g6 {[%emt 0:00:30] B56: Classical Sicilian: Unusual Lines.} 8. O-O {[%emt 0:00:30]} Bg7 {[%emt 0:00:30]} 9. Bf4 {[%emt 0:00:30]} O-O {[%emt 0:00:30] The position is equal.} 10. e5 $146 {[%emt 0:00:30]} (10. Qd2 Qb6 11. Rab1 Rd8 12. Be3 Qc7 13. Bh6 d5 14. Bxg7 Kxg7 15. exd5 cxd5 16. Nb5 {0-1 Haubro,S (2153)-Vasli,A (2237) Copenhagen Obro New Year op 2018 (7)}) 10... dxe5 {[%emt 0:00:30]} 11. Qxd8 {[%emt 0:00:30]} Rxd8 {[%emt 0:00:30]} 12. Bxe5 {[%emt 0:00:30]} Bf5 {[%emt 0:00:30]} 13. Bf3 {[%emt 0:00:30]} Rac8 {[%emt 0:00:30]} 14. Rad1 {[%emt 0:00:30]} Rxd1 {[%emt 0:00:30]} 15. Bxd1 {[%emt 0:00:30]} Bh6 {[%emt 0:00:30]} (15... Nd5 $15 {feels stronger.} 16. Bxg7 Kxg7) 16. Bxf6 {[%emt 0:00:30]} exf6 {[%emt 0:00:30]} 17. Re1 {[%emt 0:00:30]} Bd2 {[%emt 0:00:30]} 18. Re7 {[%emt 0:00:30]} Rd8 $36 {[%emt 0:00:30][%mdl 2048] Black is pushing.} 19. Rxa7 $2 {[%emt 0:00:30][%mdl 8192] [#]} ({Better is} 19. Bf3 $15) 19... Bxc3 $19 {[%emt 0:00:30]} 20. Bf3 {[%emt 0:00:30]} Bxb2 {[%emt 0:00:30]} 21. Bxc6 {[%emt 0:00:30]} Rd1# {[%emt 0:00:30] Weighted Error Value: White=0.96/Black=0.10 (very precise)   Loses game:     	White=1     	---        Mistake:       	---       	Black=1      Inaccurate:     	White=4     	Black=2      OK:         	White=5     	Black=5      Best:        	---       	Black=2} 0-1

[Event "Silves Open 2025"]
[Site "Fissul"]
[Date "2025.03.03"]
[Round "2.1"]
[White "Espinosa Aranda, Angel"]
[Black "Boesel, Alexander"]
[Result "0-1"]
[Annotator "TA"]
[ECO "B10"]
[WhiteElo "2442"]
[BlackElo "2046"]
[PlyCount "104"]
[EventDate "2025.03.03"]
[EventType "swiss"]
[EventCountry "POR"]
[SourceTitle "playchess.com"]
[Source "ChessBase"]
[SourceQuality "1"]
[TimeControl "5400+30"]

{[%evp 9,104,27,22,20,17,12,30,24,24,26,26,25,43,41,57,32,34,26,45,27,30,29,56,58,58,12,35,23,57,77,91,76,181,164,164,170,247,250,265,256,244,227,259,264,246,243,489,502,505,279,610,201,208,198,206,211,191,201,275,93,93,89,90,0,0,0,0,-128,-111,-158,0,0,16,0,0,0,0,0,0,0,0,-35,-35,-29944,-5269,-5093,-2939,-2793,-2793,-29995,-29996,-29996,-29997,-29997,-29998,-29998,-29999]} 1. e4 {[%emt 0:00:07]} c6 {[%emt 0:00:09]} 2. Nf3 {[%emt 0:01:57]} d5 {[%emt 0:00:08]} 3. d3 {[%emt 0:00:14]} Bg4 {[%emt 0:01:48]} 4. h3 {[%emt 0:00:14]} Bxf3 {[%emt 0:01:14]} 5. Qxf3 {[%emt 0:00:07]} e5 {[%emt 0:08:59]} 6. g3 {[%emt 0:04:25] B10: Caro-Kann: 2 d3 and 2 c4.} Nf6 {[%emt 0:07:22]} 7. Bg2 {[%emt 0:00:41]} dxe4 {[%emt 0:02:36]} 8. dxe4 {[%emt 0:00:10] White has an edge.} Nbd7 {[%emt 0:05:50]} 9. O-O {[%emt 0:00:49]} Bc5 {[%emt 0:01:33]} 10. Nd2 {[%emt 0:04:33]} b5 {[%emt 0:04:02]} 11. Rd1 $146 {[%emt 0:05:20]} (11. a4 a6 12. Nb3 Bb4 13. Rd1 O-O 14. Bg5 Qc7 15. Bf1 h6 16. Bxf6 Nxf6 17. axb5 axb5 {1-0 Halmeenmaki,T (2167)-Jarvenpaa,J (2268) FIN-chT 1617 2016 (1.6)}) 11... Qc7 {[%emt 0:04:34]} 12. a4 {[%emt 0:08:13]} O-O {[%emt 0:01:26]} 13. Nf1 {[%emt 0:04:58]} Rfd8 {[%emt 0:03:36]} 14. h4 {[%emt 0:02:38]} Nb6 {[%emt 0:09:04][%cal Bd7b6,Bb6c4,Bc4a3][%mdl 32]} 15. Rxd8+ {[%emt 0:03:33]} Rxd8 {[%emt 0:00:09]} 16. axb5 {[%emt 0:01:55]} cxb5 {[%emt 0:00:14]} 17. Bg5 {[%emt 0:00:12]} (17. h5 $14) 17... Rd6 {[%emt 0:02:50]} 18. Qe2 {[%emt 0:07:42]} Nc4 {[%emt 0:09:02]} 19. b3 {[%emt 0:04:57]} Na3 {[%emt 0:04:36]} 20. c3 $1 {[%emt 0:03:34]} b4 {[%emt 0:00:12]} (20... a5 $16 {was called for.}) 21. cxb4 $18 {[%emt 0:01:14]} Bxb4 {[%emt 0:00:06]} 22. Ne3 {[%emt 0:02:14] Prevents Nc2} Qc3 {[%emt 0:05:09]} (22... Qb8 $142 23. Bxf6 Rxf6) 23. Qf1 $1 {[%emt 0:04:28]} Qxb3 {[%emt 0:03:35]} 24. Rc1 {[%emt 0:05:28]} h6 {[%emt 0:05:07]} 25. Rc8+ {[%emt 0:02:23]} Kh7 {[%emt 0:00:06]} 26. Bxf6 {[%emt 0:00:07]} Rxf6 {[%emt 0:00:11]} 27. Nd5 {[%emt 0:00:07]} Rd6 $2 {[%emt 0:01:03]} (27... Rb6 28. Nxb6 axb6) 28. Qe2 {[%emt 0:00:33]} Ba5 {[%emt 0:06:27]} 29. Qg4 {[%emt 0:00:45]} Qb7 $2 {[%emt 0:02:47]} (29... g6 30. Rf8 Qb7) 30. Rf8 $2 {[%emt 0:31:52]} (30. Re8 {White wants to mate with Qf5+.} Nc4 31. Qf5+ Rg6 32. h5) 30... g6 {[%emt 0:00:57] Prevents Qf5} 31. Qf3 {[%emt 0:00:00][%csl LRa3,LRf7]} Kg7 {[%emt 0:00:34] Prevents Nf6.} 32. Re8 {[%emt 0:00:00]} (32. Qxa3 Rxd5 33. exd5 Bb4 $16) 32... Rxd5 {[%emt 0:04:14]} 33. exd5 {[%emt 0:00:00][%csl Od5] White has a strong passed pawn} Nc4 {[%emt 0:00:14]} 34. Qe4 $2 {[%emt 0:00:00]} (34. Qe2 $18 {is more deadly.} Qd7 35. Ra8) 34... Qd7 $16 {[%emt 0:02:00]} 35. Ra8 {[%emt 0:00:00]} Qb7 {[%emt 0:01:26] [#]} 36. Re8 {[%emt 0:00:00]} (36. d6 $1 $16 Qxe4 37. Bxe4 Nxd6 38. Rxa7) 36... Qd7 $11 {[%emt 0:00:05]} 37. Rb8 {[%emt 0:00:00]} Qc7 {[%emt 0:00:05]} 38. Qb1 {[%emt 0:00:00]} (38. Re8 $11 Qd7) 38... Bb6 $17 {[%emt 0:00:38][%mdl 1024] Black has strong compensation.} 39. Ra8 {[%emt 0:00:00] [#]} ({White should play} 39. Qc2 Qxb8 40. Qxc4) 39... Nd6 $2 {[%emt 0:00:21]} ({Better is} 39... Bxf2+ $1 $17 40. Kh1 (40. Kxf2 $2 {is the wrong capture.} Qc5+ 41. Kf3 Nd2+ 42. Kg4 Nxb1 $19) 40... Bxg3) 40. Qb2 {[%emt 0:00:00]} f6 {[%emt 0:03:11]} 41. Qb4 {[%emt 0:00:00]} (41. Qa3 $5) 41... h5 {[%emt 0:00:39]} 42. Qa4 {[%emt 0:00:00]} Qc1+ {[%emt 0:00:37]} 43. Kh2 {[%emt 0:00:00] and Qd7+ would now be decisive} Bxf2 {[%emt 0:00:07] and ...Qe3 should not be overlooked} 44. Qd7+ {[%emt 0:00:00]} Nf7 {[%emt 0:00:15] ( -> ...g5)} 45. Qe7 {[%emt 0:00:00] Counterplay Black} Bc5 $36 {[%emt 0:01:32][%mdl 2048] Black fights for an advantage. Dancing on a razor blade.} 46. Qe8 $2 {[%emt 0:00:00][%mdl 8192]} (46. d6 $15 Qg1+ (46... Bxd6 47. Qe8 $11) 47. Kh3 Bxd6 48. Qxa7) 46... g5 {[%emt 0:01:41]} (46... Qg1+ $142 47. Kh3 g5 48. Qg8+ Kh6 49. hxg5+ Nxg5+ 50. Qxg5+ fxg5 51. Rh8+ Kg7 52. Rxh5 Kg6 (52... g4+ $2 53. Kxg4 Qxg2 54. Rg5+ Kf6 55. Rf5+ Ke7 56. Rxe5+ Kd6 57. Rf5 $19) 53. Rh8 g4+ 54. Kxg4 Qxg2 55. Rg8+ Kh7 56. Rg5 Qe4+ (56... Qxd5 $2 57. Kf5 $19) 57. Kh3 Kh6 (57... Qxd5 58. Kg4 Qd7+ 59. Kf3 Qd3+ 60. Kg4 Qe4+ 61. Kh3 Kh6 62. Rxe5 Qxe5 63. Kg4 Qe4+ 64. Kh3 Qf3 65. Kh2 Qf1 66. g4 Bd6#) 58. Rxe5 Qxe5 59. g4 Qe3+ (59... Qxd5 {is a self mate.} 60. Kg3 Qd3+ 61. Kh2 Qf1 62. g5+ Kh5 63. Kg3 Bd6#) 60. Kg2 Kg5 61. Kh2 Kxg4 62. Kh1 Qh3#) 47. Qg8+ $19 {[%emt 0:00:00]} Kh6 {[%emt 0:00:06]} 48. hxg5+ {[%emt 0:00:00]} fxg5 {[%emt 0:00:12] ( -> ...Qg1+)} 49. g4 {[%emt 0:00:56]} Bg1+ {[%emt 0:01:11] Black mates.} 50. Kh1 {[%emt 0:00:10]} Be3+ {[%emt 0:00:34]} 51. Kh2 {[%emt 0:00:03]} Bf4+ {[%emt 0:00:07]} 52. Kh3 {[%emt 0:00:02]} Qe3+ {[%emt 0:00:07] What a bad dream for White.   Weighted Error Value: White=0.55/Black=0.38  Loses game:     	White=1     	---        Missed win:     	White=1     	---        Mistake:       	White=5     	Black=6      Inaccurate:     	White=2     	Black=3      OK:         	White=11    	Black=11     Best:        	White=6     	Black=7      Strong:       	White=2     	---} 0-1